[Event "AUT Bundesliga 2024-25"]
[Site "Austria"]
[Date "2025.04.04"]
[Round "9.7"]
[White "Vachier-Lagrave, Maxime"]
[Black "Saric, Ivan"]
[Result "1/2-1/2"]
[Annotator "TA"]
[ECO "B50"]
[WhiteElo "2722"]
[BlackElo "2659"]
[PlyCount "82"]
[EventDate "2024.08.28"]
[EventType "team-tourn"]
[EventCountry "AUT"]
[SourceTitle "playchess.com"]
[Source "ChessBase"]
[SourceQuality "1"]
[TimeControl "40/5400+30:1800+30"]

{[%evp 11,82,10,23,16,11,6,4,-14,-4,-23,-9,-12,-22,-9,-8,-34,-46,-67,-67,-58,-80,-57,-7,-10,0,0,0,-6,-6,-9,0,0,0,0,0,-18,-13,-20,-11,-44,11,13,20,20,5,0,0,0,0,0,9,12,10,14,12,14,13,13,8,0,0,0,0,0,0,0,0,0,0,0,0,0,0]} 1. e4 {[%emt 0:00:03]} c5 {[%emt 0:00:06]} 2. Nf3 {[%emt 0:00:02]} d6 {[%emt 0:00:06]} 3. Bc4 {[%emt 0:00:03]} Nf6 {[%emt 0:00:17]} 4. d3 {[%emt 0:00:05]} Nc6 {[%emt 0:00:09]} 5. O-O {[%emt 0:00:58]} g6 {[%emt 0:02:17]} 6. c3 {[%emt 0:02:26]} Bg7 {[%emt 0:00:16]} 7. Re1 {[%emt 0:00:12] B50: Sicilian: 2...d6, Miscellaneous.} O-O {[%emt 0:00:27]} 8. Nbd2 {[%emt 0:09:07] 8.a4 is the modern continuation.} Rb8 {[%emt 0:04:30]} 9. Bb3 {[%emt 0:04:52]} b5 {[%emt 0:00:37]} 10. Nf1 {[%emt 0:00:05]} a5 {[%emt 0:12:34]} 11. h3 {[%emt 0:13:00]} a4 $146 {[%emt 0:02:37]} (11... b4 12. Be3 Nd7 13. d4 Ba6 14. N1h2 bxc3 15. bxc3 cxd4 16. cxd4 Nf6 17. e5 Ne8 {1-0 Gormally,D (2494)-Ward,C (2437) GBR-ch 103rd 2016 (8)}) 12. Bc2 {[%emt 0:00:30]} e5 {[%emt 0:02:23]} 13. Ne3 {[%emt 0:08:49]} d5 {[%emt 0:14:41]} 14. exd5 {[%emt 0:05:38]} Nxd5 {[%emt 0:00:09]} 15. Nxd5 {[%emt 0:00:04]} Qxd5 {[%emt 0:00:03]} 16. Be3 {[%emt 0:00:56]} Bf5 {[%emt 0:06:02]} (16... Rd8 $15) 17. Ng5 {[%emt 0:03:59]} Rfd8 {[%emt 0:03:50][%cal Oc5c4] ...c4! poses a challenge} 18. Ne4 {[%emt 0:01:37]} c4 {[%emt 0:03:17]} 19. dxc4 {[%emt 0:00:19]} Qxc4 {[%emt 0:01:34]} 20. Qe2 {[%emt 0:01:16]} Qxe2 {[%emt 0:05:03]} 21. Rxe2 {[%emt 0:00:17]} h6 {[%emt 0:05:30]} 22. g4 {[%emt 0:09:53]} Be6 {[%emt 0:00:05]} 23. g5 {[%emt 0:02:52]} h5 {[%emt 0:02:39]} ({Much weaker is} 23... Bxh3 $6 24. gxh6 Bh8 25. h7+ Kg7 26. Bg5 $18) 24. Kh2 {[%emt 0:00:59] [#]} a3 $1 {[%emt 0:03:18]} 25. Bb3 {[%emt 0:03:03]} (25. bxa3 $5 Nd4 26. cxd4 exd4 27. Rae1 dxe3 28. Rxe3 $17) 25... Bxb3 {[%emt 0:02:18]} (25... Bf5 $15 26. Nf6+ Bxf6 27. gxf6 Bd3) 26. axb3 $11 {[%emt 0:00:08] The position is equal.} b4 {[%emt 0:00:07]} 27. bxa3 {[%emt 0:06:03]} bxc3 {[%emt 0:00:05]} 28. Rc2 {[%emt 0:00:04]} Rxb3 {[%emt 0:00:35]} 29. Rxc3 {[%emt 0:00:05]} Rxc3 {[%emt 0:00:19]} 30. Nxc3 {[%emt 0:00:05]} Nd4 {[%emt 0:07:57]} 31. Ra2 {[%emt 0:03:32]} f5 {[%emt 0:09:30] And now ...Nf3+ would win.} 32. gxf6 {[%emt 0:00:36]} Bxf6 {[%emt 0:00:03]} 33. a4 {[%emt 0:01:04]} Ra8 $1 {[%emt 0:00:06]} 34. Kg2 {[%emt 0:05:40]} Ra6 {[%emt 0:01:54]} 35. Ne4 {[%emt 0:00:43]} Be7 {[%emt 0:00:27]} 36. Bd2 {[%emt 0:04:48]} Kf7 {[%emt 0:01:11]} 37. a5 {[%emt 0:00:08]} Ke6 {[%emt 0:00:24]} 38. f3 {[%emt 0:00:25]} Kd5 {[%emt 0:00:34]} 39. Ra4 {[%emt 0:04:18]} Bd8 {[%emt 0:01:24]} 40. Nc3+ {[%emt 0:00:54]} Ke6 {[%emt 0:02:20]} 41. Ne4 {[%emt 0:30:06]} Kd5 {[%emt 0:30:06] Inhibits Nc5.   Weighted Error Value: White=0.05 (flawless) /Black=0.06 (flawless)   Mistake:       	---       	Black=2      Inaccurate:     	White=2     	---        OK:         	White=13    	Black=20     Best:        	White=1     	---        Strong:       	---       	Black=1} 1/2-1/2

[Event "AUT Bundesliga 2024-25"]
[Site "Austria"]
[Date "2025.04.04"]
[Round "9.8"]
[White "Brkic, Ante"]
[Black "Mamedyarov, Shakhriyar"]
[Result "1/2-1/2"]
[Annotator "TA"]
[ECO "C78"]
[WhiteElo "2586"]
[BlackElo "2748"]
[PlyCount "60"]
[EventDate "2024.08.28"]
[EventType "team-tourn"]
[EventCountry "AUT"]
[SourceTitle "playchess.com"]
[Source "ChessBase"]
[SourceQuality "1"]
[TimeControl "40/5400+30:1800+30"]

{[%evp 13,60,33,36,45,32,30,69,77,64,68,77,2,23,0,0,-12,-16,-18,-9,-4,-2,-13,-14,-14,-13,-8,-6,-6,0,0,14,0,0,0,47,48,57,49,69,70,70,49,49,29,46,0,0,0,0]} 1. e4 {[%emt 0:00:02]} e5 {[%emt 0:00:05]} 2. Nf3 {[%emt 0:00:06]} Nc6 {[%emt 0:00:05]} 3. Bb5 {[%emt 0:00:13]} a6 {[%emt 0:00:07]} 4. Ba4 {[%emt 0:00:03]} Nf6 {[%emt 0:00:05]} 5. O-O {[%emt 0:00:05]} Bc5 {[%emt 0:00:17]} 6. c3 {[%emt 0:01:36]} O-O {[%emt 0:00:28]} 7. d4 {[%emt 0:01:24]} Ba7 {[%emt 0:00:23]} 8. Bg5 {[%emt 0:02:46][%cal Bc1g5,Bg5h4,Bh4g3][%mdl 32] 8.Re1 injects fresh life into this line. C78: Ruy Lopez: Archangelsk and Möller Defences.} h6 {[%emt 0:00:32]} 9. Bh4 {[%emt 0:00:06]} d6 {[%emt 0:00:26]} 10. Bxc6 {[%emt 0:03:35] White is slightly better.} bxc6 {[%emt 0:00:30]} 11. dxe5 {[%emt 0:00:09]} dxe5 {[%emt 0:00:13]} 12. Nbd2 $5 $146 {[%emt 0:04:23][%csl Oa6,Oc6,Oc7][%mdl 8] Black has weak pawns An interesting novelty.} ({White should play} 12. Nxe5 $16 {Threatens to win with Qxd8.} Qe7 13. Nf3 (13. Nxc6 Qxe4 14. Nxa7 Bb7 $11) 13... Qxe4 14. Bxf6 gxf6 15. Nbd2) (12. Qe2 Re8 13. Rd1 Qe7 14. Nbd2 g5 15. Bg3 Nh5 16. Nc4 Nf4 17. Qc2 Qf6 18. Nfxe5 Rxe5 19. Nxe5 Qxe5 {0-1 Durarbayli,V (2631)-Nihal,S (2688) Titled Tuesday intern op 04th Jul Early blitz 2023 (10)}) 12... Qd6 {[%emt 0:10:29]} 13. Bg3 {[%emt 0:17:50]} Nd7 {[%emt 0:01:55][%cal Bf6d7,Bd7c5,Bc5e4][%mdl 32]} 14. Nc4 {[%emt 0:01:25]} Qxd1 {[%emt 0:00:13]} 15. Rfxd1 {[%emt 0:00:05]} f6 {[%emt 0:00:06]} 16. Na5 {[%emt 0:00:29]} Nc5 {[%emt 0:05:51]} 17. Nxc6 {[%emt 0:07:04]} Nxe4 {[%emt 0:00:31]} 18. Nxa7 {[%emt 0:02:15]} Rxa7 {[%emt 0:00:21]} 19. Nd2 {[%emt 0:00:07]} Nxg3 {[%emt 0:03:33]} 20. hxg3 {[%emt 0:00:05]} a5 {[%emt 0:00:05]} 21. Ne4 {[%emt 0:07:09]} a4 {[%emt 0:17:47]} 22. b4 {[%emt 0:01:23]} a3 {[%emt 0:10:50]} 23. Nc5 {[%emt 0:00:30]} Ba6 {[%emt 0:00:06]} (23... Bf5 $11) 24. Nxa6 $14 {[%emt 0:07:37]} Rxa6 {[%emt 0:00:10][%mdl 4096] Endgame KRR-KRR} 25. Rab1 $1 {[%emt 0:00:45]} Rd6 {[%emt 0:02:46]} 26. Rxd6 {[%emt 0:10:37]} cxd6 {[%emt 0:00:13]} 27. Rb3 {[%emt 0:00:07]} Ra8 {[%emt 0:00:05]} 28. c4 {[%emt 0:08:46]} Kf7 $1 {[%emt 0:01:17]} 29. c5 {[%emt 0:00:04]} (29. Kf1 $14 {feels stronger.}) 29... dxc5 {[%emt 0:01:26]} 30. bxc5 {[%emt 0:00:02]} Ke6 {[%emt 0:01:10] Weighted Error Value: White=0.12 (very precise) /Black=0.09 (flawless)   Mistake:       	White=2     	Black=1      Inaccurate:     	---       	Black=1      OK:         	White=9     	Black=7      Best:        	White=2     	---        Strong:       	White=1     	Black=1} 1/2-1/2

[Event "AUT Bundesliga 2024-25"]
[Site "Austria"]
[Date "2025.04.04"]
[Round "9.9"]
[White "Maghsoodloo, Parham"]
[Black "Martinovic, Sasa"]
[Result "1-0"]
[Annotator "TA"]
[ECO "D35"]
[WhiteElo "2684"]
[BlackElo "2549"]
[PlyCount "89"]
[EventDate "2024.08.28"]
[EventType "team-tourn"]
[EventCountry "AUT"]
[SourceTitle "playchess.com"]
[Source "ChessBase"]
[SourceQuality "1"]
[TimeControl "40/5400+30:1800+30"]

{[%evp 11,89,14,28,0,0,0,5,-26,12,10,10,7,10,0,5,0,8,-9,8,0,27,11,31,25,28,29,30,0,0,0,28,0,0,-31,0,0,0,0,29,24,210,212,270,268,231,206,226,210,191,205,431,254,252,249,679,724,991,642,960,1033,1180,1055,509,1198,1188,1097,1310,2064,1245,1241,5177,5102,6168,6087,6068,5210,6716,7177,5165,5089]} 1. c4 {[%emt 0:00:02]} e6 {[%emt 0:00:04]} 2. Nc3 {[%emt 0:00:16]} d5 {[%emt 0:00:04]} 3. d4 {[%emt 0:00:46]} Nf6 {[%emt 0:00:04]} 4. cxd5 {[%emt 0:00:06]} exd5 {[%emt 0:00:04]} 5. Bg5 {[%emt 0:00:08]} c6 {[%emt 0:00:15]} 6. e3 {[%emt 0:00:07]} Bf5 {[%emt 0:00:08] 6...h6 is the modern continuation.} 7. Nge2 {[%emt 0:05:29] D35: Queen's Gambit Declined: Exchange Variation.} h6 {[%emt 0:00:11]} 8. Bf4 {[%emt 0:00:05]} Nbd7 {[%emt 0:00:11]} 9. h4 {[%emt 0:07:33] The position is equal.} Bb4 $146 {[%emt 0:07:06]} (9... Qb6 10. Qd2 Nh5 11. Bh2 Be7 12. f3 Bh7 13. Bg1 Bd6 14. Bf2 f5 15. Nf4 Nxf4 16. exf4 {½-½ Van der Werf,M (2416)-Plotkin,V (2259) WchT Seniors 50 2025 (8.1)}) 10. a3 {[%emt 0:09:23]} Ba5 {[%emt 0:00:50]} 11. Ng3 {[%emt 0:03:02]} Bh7 {[%emt 0:01:29]} 12. h5 {[%emt 0:04:18]} O-O {[%emt 0:01:39]} 13. Bd3 {[%emt 0:00:11]} Bxd3 {[%emt 0:01:45]} 14. Qxd3 {[%emt 0:00:07]} Re8 {[%emt 0:01:33]} 15. Nf5 {[%emt 0:07:53]} Ne4 {[%emt 0:08:14]} 16. f3 {[%emt 0:05:36]} Nxc3 {[%emt 0:15:34]} 17. bxc3 {[%emt 0:00:12] A sharp opening} Bc7 {[%emt 0:00:15]} 18. Bxc7 {[%emt 0:03:14]} Qxc7 {[%emt 0:00:04]} 19. Rh3 {[%emt 0:03:55]} Nf6 {[%emt 0:03:26][%cal Bd7f6,Bf6e8,Be8d6,Bd6c8,Bc8e7][%mdl 32]} 20. Kf2 {[%emt 0:05:07]} Kh8 {[%emt 0:01:25]} 21. Rg3 {[%emt 0:03:16]} Rg8 {[%emt 0:04:51]} (21... Nxh5 $2 22. Rh3 g6 23. Rah1 $18) 22. Rh1 {[%emt 0:03:21]} Ne8 {[%emt 0:05:54]} 23. e4 {[%emt 0:02:16]} Nd6 {[%emt 0:00:56]} 24. Nh4 {[%emt 0:01:01]} dxe4 {[%emt 0:06:07]} 25. fxe4 {[%emt 0:00:25][%cal Bf3e4,Be4e5][%mdl 32]} Rad8 $2 {[%emt 0:01:18] Loses the game.} (25... b5 $1 $11) 26. e5 $18 {[%emt 0:05:28]} Nc8 {[%emt 0:00:25] [#]} 27. Rf1 $1 {[%emt 0:00:32]} Qe7 {[%emt 0:06:15]} 28. Qe4 {[%emt 0:03:22]} Qe6 {[%emt 0:00:48]} 29. Kg1 {[%emt 0:02:31][%cal Of1f7] Rxf7! is the strong threat.} Ne7 {[%emt 0:00:04]} 30. Rgf3 {[%emt 0:25:48]} Rgf8 {[%emt 0:03:43] [#]} (30... Rdf8 31. a4 (31. Ng6+ Nxg6 32. hxg6 f5 $16) 31... a5 32. Ng6+ Nxg6 33. hxg6 f5 34. Rxf5 Qxg6) 31. Ng6+ $1 {[%emt 0:00:00][%mdl 512]} Nxg6 {[%emt 0:00:26]} 32. hxg6 {[%emt 0:00:00]} Rd7 {[%emt 0:01:55]} (32... f6 33. Qh4 Kg8) 33. Rxf7 {[%emt 0:00:00] White is clearly winning.} Rdxf7 {[%emt 0:00:11]} 34. Rxf7 {[%emt 0:00:00]} Rxf7 {[%emt 0:00:44]} 35. gxf7 {[%emt 0:00:00]} Qxf7 {[%emt 0:00:07][%mdl 4096] Endgame KQ-KQ} 36. e6 {[%emt 0:00:00]} Qe7 {[%emt 0:00:17]} 37. c4 {[%emt 0:00:00][%cal Bc3c4,Bc4d5][%mdl 32]} Kg8 {[%emt 0:01:09]} 38. d5 {[%emt 0:00:00]} cxd5 {[%emt 0:00:06]} 39. cxd5 {[%emt 0:00:00]} Qc5+ {[%emt 0:01:22]} 40. Kh2 {[%emt 0:00:00]} Qc7+ {[%emt 0:01:12]} 41. Kh3 {[%emt 0:26:22] White threatens e7 and mate.} Kf8 {[%emt 0:30:51]} 42. Qb4+ {[%emt 0:00:06]} Qe7 {[%emt 0:01:07]} 43. Qf4+ {[%emt 0:01:19]} Kg8 {[%emt 0:01:15]} 44. Qb8+ {[%emt 0:00:09]} Kh7 {[%emt 0:00:03]} 45. Qe5 {[%emt 0:00:14] Weighted Error Value: White=0.26 (precise) /Black=0.84  Loses game:     	---       	Black=1      Mistake:       	White=1     	Black=2      Inaccurate:     	White=4     	Black=5      OK:         	White=12    	Black=10     Best:        	White=3     	Black=3      Strong:       	White=1     	---} 1-0

[Event "AUT Bundesliga 2024-25"]
[Site "Austria"]
[Date "2025.04.04"]
[Round "9.10"]
[White "Bosiocic, Marin"]
[Black "Sarana, Alexey"]
[Result "0-1"]
[Annotator "TA"]
[ECO "D02"]
[WhiteElo "2522"]
[BlackElo "2672"]
[PlyCount "90"]
[EventDate "2024.08.28"]
[EventType "team-tourn"]
[EventCountry "AUT"]
[SourceTitle "playchess.com"]
[Source "ChessBase"]
[SourceQuality "1"]
[TimeControl "40/5400+30:1800+30"]

{[%evp 9,90,20,18,8,26,-42,-54,-51,-23,-33,-19,-9,-16,-23,-24,-23,-23,-30,-29,-13,-15,-61,-46,-49,-56,-53,-42,-67,-62,-74,-47,-25,-35,-50,-18,-106,-106,-114,-105,-97,-82,-148,-142,-172,-171,-169,-163,-156,-181,-156,-161,-154,-170,-283,-256,-297,-295,-308,-313,-300,-308,-357,-356,-356,-364,-362,-362,-369,-375,-376,-370,-352,-339,-431,-437,-405,-382,-544,-367,-436,-441,-520,-516]} 1. Nf3 {[%emt 0:00:01]} d5 {[%emt 0:00:08]} 2. g3 {[%emt 0:00:04]} g6 {[%emt 0:01:12]} 3. Bg2 {[%emt 0:00:05]} Bg7 {[%emt 0:00:04]} 4. d4 {[%emt 0:00:04]} c6 {[%emt 0:01:23]} 5. c4 {[%emt 0:01:00]} dxc4 {[%emt 0:01:01]} 6. O-O {[%emt 0:00:06] D02: 1 d4 d5 2 Nf3 sidelines, including 2...Nf6 3 g3 and 2...Nf6 3 Bf4.} Nf6 {[%emt 0:01:59]} 7. Na3 {[%emt 0:00:06]} (7. Qc2 $11) 7... b5 $15 {[%emt 0:00:46]} 8. b3 {[%emt 0:02:23] Black is slightly better.} cxb3 {[%emt 0:12:31]} 9. axb3 {[%emt 0:00:08]} O-O {[%emt 0:01:10]} 10. Ne5 {[%emt 0:01:56][%cal Oa3b5]} Nd5 {[%emt 0:02:59]} 11. Bb2 {[%emt 0:00:27] Repels Nc3} a5 $146 {[%emt 0:02:19]} (11... Bb7 12. Rc1 Qd6 13. Nc2 a5 14. e4 Nb4 15. Nxb4 axb4 16. Qc2 Rc8 17. Rfd1 Nd7 {1-0 Andriasian,Z (2594)-Sarana,A (2432) EU-ch rapid Minsk 2015 (7)}) 12. Nd3 {[%emt 0:04:47] White sacrificed a pawn} Qb6 {[%emt 0:09:10]} 13. Nc2 {[%emt 0:00:14]} b4 {[%emt 0:08:55]} 14. Qd2 {[%emt 0:07:34][%cal Oc2b4]} Rd8 {[%emt 0:00:17]} 15. e4 {[%emt 0:03:01]} (15. Rfd1 $11) 15... Nc7 {[%emt 0:01:14]} 16. Qe3 {[%emt 0:03:42]} Ba6 {[%emt 0:09:35]} 17. Rfd1 {[%emt 0:00:14]} Nd7 {[%emt 0:00:10][%cal Oe7e5]} 18. Nc5 {[%emt 0:03:25]} Bb5 {[%emt 0:01:20]} 19. h4 {[%emt 0:10:52]} e5 {[%emt 0:06:04]} 20. Nxd7 {[%emt 0:01:04]} Rxd7 {[%emt 0:00:01]} 21. d5 $1 {[%emt 0:00:20]} Qb7 {[%emt 0:07:02][%cal Rc6d5]} 22. Bh3 {[%emt 0:03:29]} (22. Qc5 $11) 22... cxd5 $1 $17 {[%emt 0:02:16] Black continues to play with concentration.} 23. Bxd7 {[%emt 0:01:20]} Bxd7 {[%emt 0:00:23]} 24. exd5 {[%emt 0:11:01]} Nxd5 {[%emt 0:00:47]} 25. Qc5 {[%emt 0:00:43]} (25. Qe1 $142) 25... Be6 $1 {[%emt 0:00:39] This pair of bishops is nice.} 26. Rxa5 {[%emt 0:01:52]} Rc8 {[%emt 0:00:04]} 27. Qa7 {[%emt 0:00:19]} Qxa7 $40 {[%emt 0:03:38][%mdl 128] Black has strong attack.} 28. Rxa7 {[%emt 0:00:07]} Rxc2 {[%emt 0:00:03]} 29. Ra8+ {[%emt 0:00:14]} Bf8 {[%emt 0:00:04]} 30. Bxe5 {[%emt 0:01:14] [#]} Rc6 {[%emt 0:00:52] Inhibits Bd6.} 31. Rda1 {[%emt 0:04:46]} (31. Rd8 {was worth a try.}) 31... f6 $19 {[%emt 0:01:40]} 32. Bd4 {[%emt 0:00:04]} Nc7 {[%emt 0:00:59][%csl LRa8,LRb3] Prevents R8a6.} 33. Rb8 {[%emt 0:01:54]} Bxb3 {[%emt 0:00:28]} 34. Be3 {[%emt 0:08:30] [#]} Kf7 $1 {[%emt 0:02:03]} 35. Ra7 {[%emt 0:00:20]} Bd6 {[%emt 0:00:59]} 36. Bf4 {[%emt 0:16:07] aiming for Bxd6.} Bd5 {[%emt 0:00:36]} (36... Bxf4 37. gxf4 Ke6 38. Rxb4 $19) 37. Rd8 {[%emt 0:04:52]} (37. Bxd6 $2 {is a self mate.} Rc1+ 38. Kh2 Rh1#) 37... Ke6 {[%emt 0:05:20]} 38. Rxd6+ {[%emt 0:04:41]} Rxd6 {[%emt 0:00:01]} 39. Rxc7 {[%emt 0:00:14][%mdl 4096] Endgame [#] KRB-KRB. Black is a pawn up.} b3 $1 {[%emt 0:00:12]} 40. Rc1 {[%emt 0:00:42]} Ra6 {[%emt 0:06:49] ( -> ...b2)} 41. Re1+ {[%emt 0:30:05]} Kf5 {[%emt 0:31:46]} 42. Be3 {[%emt 0:03:16]} Ra4 {[%emt 0:00:40] ...b2 would now be deadly. Prevents Bd4} (42... b2 $2 43. Bd4 $19) 43. Bd2 {[%emt 0:03:05]} (43. f3 {is the only way for White.}) 43... Rc4 {[%emt 0:03:52]} (43... b2 $2 44. Bc3 $19) 44. Rb1 {[%emt 0:00:00]} Rc2 {[%emt 0:00:00]} 45. Bc1 {[%emt 0:00:00] [#]} b2 $1 {[%emt 0:00:00][%mdl 512] Weighted Error Value: White=0.28 (precise) /Black=0.08 (flawless)   Mistake:       	White=6     	---        Inaccurate:     	---       	Black=4      OK:         	White=7     	Black=18     Best:        	White=7     	Black=4      Strong:       	White=1     	Black=3} 0-1

[Event "AUT Bundesliga 2024-25"]
[Site "Austria"]
[Date "2025.04.04"]
[Round "9.11"]
[White "Esipenko, Andrey"]
[Black "Livaic, Leon"]
[Result "1-0"]
[Annotator "TA"]
[ECO "C41"]
[WhiteElo "2696"]
[BlackElo "2536"]
[PlyCount "41"]
[EventDate "2024.08.28"]
[EventType "team-tourn"]
[EventCountry "AUT"]
[SourceTitle "playchess.com"]
[Source "ChessBase"]
[SourceQuality "1"]
[TimeControl "40/5400+30:1800+30"]

{[%evp 9,41,27,30,19,21,8,24,18,6,12,20,28,31,6,32,35,40,29,55,50,31,48,88,58,98,68,341,350,337,214,591,581,863,849]} 1. d4 {[%emt 0:00:14]} d6 {[%emt 0:00:19]} 2. e4 {[%emt 0:00:27]} Nf6 {[%emt 0:00:07]} 3. Nc3 {[%emt 0:00:08]} e5 {[%emt 0:00:06]} 4. Nf3 {[%emt 0:00:08]} Nbd7 {[%emt 0:00:07]} 5. Bd3 {[%emt 0:00:22]} Be7 {[%emt 0:00:47]} 6. h3 {[%emt 0:00:11] C41: Philidor Defence.} O-O {[%emt 0:00:49]} 7. Be3 {[%emt 0:00:10]} c6 {[%emt 0:01:20]} 8. a4 {[%emt 0:00:10] White has an edge.} exd4 {[%emt 0:01:00]} 9. Bxd4 {[%emt 0:00:19]} Qc7 {[%emt 0:01:12]} 10. O-O {[%emt 0:02:11]} Ne5 {[%emt 0:00:33]} 11. Nh2 $146 {[%emt 0:08:48][%cal Bf3h2,Bh2f1,Bf1e3,Be3f5,Bf5h6][%mdl 32]} (11. Nxe5 dxe5 12. Be3 Be6 13. Qe2 Bb4 14. Nd1 Qe7 15. c3 Bd6 16. Bg5 h6 17. Bh4 {1-0 Verbin,V (1498)-Goian,V (1516) MDA-ch (Women) 2014 (1)}) 11... Nxd3 {[%emt 0:09:31]} 12. Qxd3 {[%emt 0:01:44]} b6 {[%emt 0:05:16]} 13. Rfe1 {[%emt 0:16:49]} Bb7 {[%emt 0:03:38]} 14. Nf1 {[%emt 0:06:10]} Rfe8 {[%emt 0:10:09]} 15. Ne3 {[%emt 0:02:53]} g6 {[%emt 0:00:44] Wards off Nf5} 16. Rad1 {[%emt 0:01:49][%cal Oe3f5] White is more active.} Rad8 {[%emt 0:00:15]} 17. Nf5 {[%emt 0:02:42]} Bc8 $2 {[%emt 0:18:24][%mdl 8192] [#] Loses the game.} (17... gxf5 $2 {is the wrong capture.} 18. Qg3+ Kf8 19. Qg5 $18 (19. exf5 c5 $15)) (17... Nh5 $14) 18. Nh6+ $1 $18 {[%emt 0:09:09] A dynamic duo of knights.} Kg7 {[%emt 0:00:22]} 19. Qd2 {[%emt 0:15:18]} Be6 $2 {[%emt 0:01:06]} (19... Qb7 {is more resistant.} 20. b3 c5 21. Bxf6+ Bxf6) 20. Qg5 {[%emt 0:00:42] Threatens to win with Ne2.} Qc8 {[%emt 0:08:34]} 21. Ne2 {[%emt 0:02:22] Weighted Error Value: White=0.18 (very precise) /Black=0.98  Loses game:     	---       	Black=1      Mistake:       	---       	Black=1      Inaccurate:     	White=2     	Black=5      OK:         	White=4     	Black=3      Best:        	White=1     	Black=1      Strong:       	White=1     	---} 1-0

[Event "AUT Bundesliga 2024-25"]
[Site "Austria"]
[Date "2025.04.04"]
[Round "9.12"]
[White "Koellner, Ruben Gideon"]
[Black "Bacrot, Etienne"]
[Result "1/2-1/2"]
[Annotator "TA"]
[ECO "D05"]
[WhiteElo "2499"]
[BlackElo "2633"]
[PlyCount "60"]
[EventDate "2024.08.28"]
[EventType "team-tourn"]
[EventCountry "AUT"]
[SourceTitle "playchess.com"]
[Source "ChessBase"]
[SourceQuality "1"]
[TimeControl "40/5400+30:1800+30"]

{[%evp 12,60,0,-11,-5,-11,0,-20,-16,-18,-25,-25,-20,-19,0,-11,1,-6,7,1,7,0,20,0,7,-11,-13,-12,-11,-21,-14,-21,-6,-6,-12,-16,-18,-15,-8,-12,-10,-20,-10,-13,-6,-8,-3,-8,-3,-10,-10]} 1. d4 {[%emt 0:00:06]} d5 {[%emt 0:00:05]} 2. Nf3 {[%emt 0:00:16]} Nf6 {[%emt 0:00:05]} 3. e3 {[%emt 0:00:17]} e6 {[%emt 0:00:32]} 4. Nbd2 {[%emt 0:00:16]} b6 {[%emt 0:01:05]} 5. Bd3 {[%emt 0:02:48]} Bb7 {[%emt 0:01:02]} 6. Ne5 {[%emt 0:00:45]} c5 {[%emt 0:06:53]} (6... Nbd7 7. f4 Be7 8. Qf3 c5 9. c3 Qc7 10. O-O a6 11. a4 g6 12. g4 Rf8 13. g5 Nxe5 14. fxe5 Nd7 15. h4 {½-½ Koellner,R (2490)-Bacrot,E (2683) Titled Tuesday intern op 12th Dec Early blitz 2023 (9)}) 7. c3 {[%emt 0:01:17]} Be7 {[%emt 0:00:49] D05: Colle System with ...e6.} 8. f4 {[%emt 0:01:04]} Qc8 {[%emt 0:02:22]} 9. g4 $146 {[%emt 0:23:17]} (9. Qf3 Ba6 10. Bc2 Nc6 11. Nb3 O-O 12. Kf2 Qb7 13. Ng4 Nxg4+ 14. Qxg4 f5 15. Qh3 {0-1 Bossert,C (2265)-Thoma,C (2225) Oberliga Baden 9596 1995 (9.4)}) 9... Nc6 {[%emt 0:06:05]} 10. g5 {[%emt 0:16:24]} Nd7 {[%emt 0:02:00]} 11. Ndf3 {[%emt 0:19:01]} Ndxe5 {[%emt 0:13:57]} 12. fxe5 {[%emt 0:00:26] The position is equal.} Qc7 {[%emt 0:01:00]} 13. Qe2 {[%emt 0:03:56]} O-O-O {[%emt 0:02:01]} 14. Bd2 {[%emt 0:02:23]} f6 {[%emt 0:02:09]} 15. gxf6 {[%emt 0:02:00]} gxf6 {[%emt 0:00:02]} 16. exf6 {[%emt 0:00:13]} Bxf6 {[%emt 0:00:02]} 17. O-O-O {[%emt 0:01:13]} e5 {[%emt 0:01:47] [#] ...e4 is the strong threat.} 18. dxe5 {[%emt 0:01:34]} Nxe5 {[%emt 0:00:19]} 19. Nxe5 {[%emt 0:00:37]} Bxe5 {[%emt 0:00:06]} 20. Rhf1 {[%emt 0:01:06]} Bxh2 {[%emt 0:05:56]} 21. Qh5 {[%emt 0:00:32]} Rdf8 {[%emt 0:02:02] Dodges Rf7} (21... Kb8 {is interesting.} 22. Rf7 Qe5 23. Qh6 Qd6) 22. Rxf8+ {[%emt 0:01:39]} Rxf8 {[%emt 0:00:13]} 23. Qxh7 {[%emt 0:00:10]} Qxh7 {[%emt 0:00:30]} 24. Bxh7 {[%emt 0:00:09]} Kc7 {[%emt 0:00:19]} 25. Bd3 {[%emt 0:00:33]} Rf7 {[%emt 0:00:56]} 26. Rf1 {[%emt 0:03:02]} Rxf1+ {[%emt 0:00:29]} 27. Bxf1 {[%emt 0:00:06]} Kd6 {[%emt 0:00:17]} 28. Be1 {[%emt 0:02:14]} Bc8 {[%emt 0:00:06]} 29. Kd2 {[%emt 0:02:15]} Be6 {[%emt 0:00:31]} 30. Bh4 {[%emt 0:00:39]} Be5 {[%emt 0:00:06] An uneventful encounter.   Weighted Error Value: White=0.05 (flawless) /Black=0.06 (flawless)   OK:         	White=9     	Black=3} 1/2-1/2